bitfinex-derivatives/quotes_SOLF0:USTF0_20250202
["timestamp","ask_amount","ask_price","bid_price","bid_amount"]
[1738534614647,0.03392559,205.0,204.95,0.0373539]
[1738534614842,4.8803,204.98,204.95,0.0373539]
[1738534615047,0.03392559,205.0,204.95,0.0373539]
[1738534616048,4.91362559,205.0,204.95,0.0373539]
[1738534616254,0.03392559,205.0,204.95,0.0373539]
[1738534617254,4.13392559,205.0,204.95,0.0373539]
[1738534617451,4.13392559,205.0,204.85,39.8316707]
[1738534617845,4.1,205.0,204.85,39.8316707]
[1738534618152,4.1,205.0,204.89,39.8316707]
[1738534618650,0.03451105,204.97,204.89,39.8316707]
[1738534618845,0.03451105,204.97,204.96,4.8807]
[1738534619151,5.9063,205.07,204.93,39.8316707]
[1738534619351,5.9063,205.07,204.9,0.083]
[1738534620254,0.03611932,205.01,204.96,0.03626742]
[1738534620551,0.03611932,205.01,204.98,4.8802]
[1738534620750,0.03611932,205.01,204.98,39.8316707]
[1738534620956,4.1,205.19,204.98,39.8316707]
[1738534621159,4.1,205.19,204.96,0.03626742]
[1738534621160,3.98360585,205.18,205.08,39.8316707]
[1738534621454,2.9505,205.23,205.08,39.8316707]
[1738534621655,0.88037232,205.22,205.08,39.8316707]
[1738534621850,0.88037232,205.22,205.04,39.8316707]
[1738534622158,0.03519147,205.17,205.13,0.03485118]
[1738534622854,4.1,205.31,205.16,39.8316707]
[1738534623058,0.87982708,205.3,205.16,39.8316707]
[1738534623454,2.9505,205.36,205.2,39.8316707]
[1738534623657,2.9009,205.42,205.24,39.8316707]
[1738534624059,0.03608604,205.35,205.31,0.03313377]
[1738534624652,53.72986714,205.53,205.34,39.8316707]
[1738534624951,0.87913809,205.52,205.38,44.7022707]
[1738534625155,0.87913809,205.52,205.38,39.8316707]
[1738534625451,0.87894904,205.51,205.43,4.8693]
[1738534625753,53.72986714,205.53,205.43,39.8316707]
[1738534625954,0.03123593,205.49,205.45,0.03512104]
[1738534628357,4.8687,205.47,205.45,0.03512104]
[1738534630062,0.03123593,205.49,205.45,0.03512104]
[1738534630669,4.8686,205.47,205.45,0.03512104]
[1738534632167,4.8686,205.47,205.28,0.5774]
[1738534632168,4.08,205.47,205.29,39.8316707]
[1738534632365,4.02878542,205.46,205.29,39.8316707]
[1738534632567,3.1497,205.46,205.29,39.8316707]
[1738534632765,4.8697,205.43,205.29,39.8316707]
[1738534633367,0.03333274,205.38,205.34,0.03198522]
[1738534634965,3.0176,205.51,205.37,39.8316707]
[1738534635168,7.1085,205.58,205.41,39.8316707]
[1738534635363,7.1085,205.58,205.45,39.8316707]
[1738534635673,3.0285,205.58,205.45,39.8316707]
[1738534635967,4.08,205.62,205.45,39.8316707]
[1738534636193,3.0285,205.61,205.49,39.8316707]
[1738534636372,4.90153914,205.54,205.49,0.03459447]
[1738534636578,0.03453914,205.54,205.49,0.03459447]
[1738534637973,4.90163914,205.54,205.49,0.03459447]
[1738534638477,0.03453914,205.54,205.49,0.03459447]
[1738534639173,0.03453914,205.54,205.5,4.8678]
[1738534639376,0.03453914,205.54,205.49,39.86626517]
[1738534639674,2.9012,205.69,205.53,39.8316707]
[1738534639869,0.87825828,205.68,205.53,39.8316707]
[1738534640370,2.9012,205.69,205.55,4.8665]
[1738534640570,2.9012,205.69,205.53,39.8316707]
[1738534640771,4.8653,205.61,205.6,0.03662192]
[1738534641673,4.8653,205.61,205.53,4.8671]
[1738534641674,4.866,205.58,205.48,39.8316707]
[1738534641872,0.03212099,205.64,205.44,39.8316707]
[1738534642075,0.87840561,205.64,205.44,39.8316707]
[1738534642975,0.03469069,205.56,205.52,0.03235494]
[1738534643393,4.8683,205.49,205.4,39.8316707]
[1738534643674,3.0957,205.56,205.4,39.8316707]
[1738534644481,0.03273707,205.5,205.46,0.03559819]
[1738534644980,0.03273707,205.5,205.32,39.8316707]
[1738534645179,39.8316707,205.48,205.3,0.5732]
[1738534645573,3.0957,205.56,205.35,39.8316707]
[1738534645881,0.87893323,205.55,205.47,39.8316707]
[1738534646080,3.1248,205.59,205.42,4.8696]
[1738534646279,0.03705331,205.48,205.43,0.03157153]
[1738534646581,0.03084469,205.48,205.44,4.8691]
[1738534646770,0.03084469,205.48,205.43,0.03419607]
[1738534647277,4.8665,205.56,205.43,0.03419607]
[1738534647482,3.1248,205.59,205.42,39.8316707]
[1738534648070,0.87857716,205.58,205.37,39.8316707]
[1738534648580,0.03541057,205.5,205.45,0.03721916]
[1738534648781,4.11541057,205.5,205.29,39.8316707]
[1738534649081,4.8698,205.42,205.29,39.8316707]
[1738534649279,4.08,205.5,205.29,39.8316707]
[1738534649483,4.8687,205.47,205.29,39.8316707]
[1738534649781,2.8825,205.54,205.38,39.8316707]
[1738534649980,0.03364007,205.41,205.39,4.8704]
[1738534650278,0.03364007,205.41,205.36,0.03696238]
[1738534650582,0.03364007,205.41,205.38,0.03493816]
[1738534650583,4.8704,205.4,205.38,0.03493816]
[1738534650772,0.03530276,205.41,205.38,0.03493816]
[1738534650972,0.03530276,205.41,205.25,39.8316707]
[1738534651175,0.03530276,205.41,205.37,0.03095386]
[1738534651378,3.1014,205.42,205.25,39.8316707]
[1738534651682,6.0718,205.41,205.37,0.03377303]
[1738534651886,0.03310575,205.36,205.29,4.8726]
[1738534652182,0.03310575,205.36,205.25,39.8316707]
[1738534652183,0.03310575,205.36,205.21,39.8316707]
[1738534652481,4.8723,205.31,205.3,0.03100458]
[1738534652680,4.90977501,205.31,205.3,0.03100458]
[1738534652981,4.8731,205.28,205.17,39.8316707]
[1738534653179,39.8316707,205.35,205.16,0.9415]
[1738534653480,0.87980103,205.34,205.16,0.6136]
[1738534653785,0.87973207,205.33,205.17,39.8316707]
[1738534653977,0.87973207,205.32,205.17,39.8316707]
[1738534654282,0.03302829,205.27,205.23,0.03580918]
[1738534654778,0.03302829,205.27,205.1,0.3279]
[1738534654979,0.03302829,205.27,205.09,39.8316707]
[1738534655177,39.8316707,205.28,205.09,39.8316707]
[1738534655481,0.8800923,205.27,205.09,39.8316707]
[1738534655897,0.8800923,205.27,205.05,40.6495567]
[1738534656181,0.03396906,205.2,205.05,40.6495567]
[1738534656377,4.8756,205.18,205.05,40.6495567]
[1738534656587,39.8316707,205.28,205.05,40.6495567]
[1738534656881,4.8767,205.13,205.05,39.8316707]
[1738534657078,0.03281524,205.15,205.01,39.8316707]
[1738534657278,0.03281524,205.15,205.05,39.8316707]
[1738534657475,4.08,205.18,205.09,39.8316707]
[1738534657680,0.03526779,205.12,205.09,39.8316707]
[1738534658485,0.03526779,205.12,205.04,39.8316707]
[1738534658683,0.03526779,205.12,205.0,39.8316707]
[1738534658880,0.03526779,205.12,204.97,0.6856]
[1738534659076,0.88049535,205.16,204.97,40.5172707]
[1738534659380,0.03228783,205.07,205.01,39.8316707]
[1738534660886,4.8788,205.04,204.97,40.5172707]
[1738534661786,0.03261086,205.03,204.97,40.5172707]
[1738534662384,4.8795,205.01,204.95,0.3385]
[1738534662584,0.03261086,205.03,204.93,39.8316707]
[1738534662784,0.03261086,205.03,204.86,1.0382]
[1738534662992,12.22961086,205.03,204.86,0.6904]
[1738534663186,12.197,205.03,204.86,0.6904]
[1738534663785,0.03133604,204.97,204.81,120.42544916]
[1738534664185,39.8316707,204.98,204.81,120.42544916]
[1738534664386,0.88100424,204.97,204.81,80.59377846]
[1738534664595,0.0324688,204.91,204.81,80.59377846]
[1738534664891,4.08,204.9,204.81,80.59377846]
[1738534665290,4.08,204.9,204.75,0.6904]
[1738534665487,4.8832,204.86,204.75,0.6904]
[1738534665686,4.08,204.9,204.71,39.8316707]
[1738534665687,43.9116707,204.9,204.71,39.8316707]
[1738534665887,12.0144,204.89,204.71,39.8316707]
[1738534666089,0.03338318,204.83,204.71,39.8316707]
[1738534666692,4.885,204.78,204.71,39.8316707]
[1738534666984,39.8316707,204.86,204.67,39.8316707]
[1738534667185,4.8844,204.81,204.67,39.8316707]
[1738534667492,0.03654468,204.73,204.71,39.8316707]
[1738534667685,0.8817083,204.88,204.71,39.8316707]
[1738534668185,12.0144,204.89,204.71,39.8316707]
[1738534668386,4.8833,204.85,204.71,39.8316707]
[1738534668585,12.0144,204.89,204.71,39.8316707]
[1738534668985,0.03235343,204.8,204.76,0.03591465]
[1738534669387,12.0144,204.89,204.71,39.8316707]
[1738534669586,0.03125704,204.8,204.76,0.03716856]
[1738534669984,12.0144,204.89,204.71,39.8316707]
[1738534670192,0.03502083,204.8,204.76,0.03454877]
[1738534670487,0.03502083,204.8,204.67,39.8316707]
[1738534670696,0.88165284,204.88,204.67,39.8316707]
[1738534670895,0.03525395,204.78,204.76,0.03429589]
[1738534671294,0.88165284,204.88,204.76,0.03429589]
[1738534671593,0.03140713,204.79,204.76,0.03429589]
[1738534671893,0.88165284,204.88,204.76,0.03429589]
[1738534672095,0.03584061,204.8,204.76,0.03429589]
[1738534673190,4.8848,204.79,204.76,0.03429589]
[1738534673388,0.03584061,204.8,204.76,0.03429589]
[1738534674192,4.8852,204.77,204.76,0.03429589]
[1738534674396,0.03584061,204.8,204.6,39.8316707]
[1738534674588,39.86751131,204.8,204.6,39.8316707]
[1738534674788,0.88197825,204.79,204.6,39.8316707]
[1738534675193,2.9018,204.78,204.6,39.8316707]
[1738534675495,4.08,204.77,204.6,39.8316707]
[1738534675692,0.03511232,204.71,204.6,39.8316707]
[1738534675893,4.8874,204.68,204.6,39.8316707]
[1738534676195,10.228,204.77,204.56,1.0741]
[1738534676196,39.8316707,204.76,204.56,40.9057707]
[1738534676495,4.91899688,204.66,204.56,40.9057707]
[1738534677290,4.91909688,204.66,204.56,40.9057707]
[1738534677494,0.03119688,204.66,204.56,40.9057707]
[1738534678701,4.8887,204.63,204.56,40.9057707]
[1738534678902,0.03119688,204.66,204.56,40.9057707]
[1738534679202,0.03492146,204.63,204.56,40.9057707]
[1738534679501,4.8889,204.62,204.56,40.9057707]
[1738534679699,2.8798,204.75,204.56,40.9057707]
[1738534679899,2.8798,204.75,204.53,0.81988852]
[1738534679900,0.03554145,204.62,204.53,0.81988852]
[1738534680095,39.8316707,204.7,204.53,0.81988852]
[1738534680300,0.03379001,204.6,204.44,39.8316707]
[1738534680801,4.8908,204.54,204.44,39.8316707]
[1738534680996,0.03374503,204.54,204.44,39.8316707]
[1738534681192,0.03374503,204.54,204.41,0.7389]
[1738534681402,4.8926,204.46,204.4,39.8316707]
[1738534681593,4.1,204.57,204.4,39.8316707]
[1738534681801,0.03732552,204.45,204.4,39.8316707]
[1738534682201,4.1,204.57,204.4,39.8316707]
[1738534682402,0.0364133,204.45,204.4,39.8316707]
[1738534682601,4.1,204.57,204.4,39.8316707]
[1738534683107,0.03406493,204.45,204.4,39.8316707]
[1738534683296,4.08,204.58,204.41,0.7405]
[1738534683502,0.03738391,204.45,204.34,39.8316707]
[1738534683898,11.8429,204.53,204.34,39.8316707]
[1738534684099,0.03614507,204.42,204.34,39.8316707]
[1738534684307,0.03614507,204.42,204.3,39.8316707]
[1738534684797,39.8316707,204.5,204.3,39.8316707]
[1738534685002,0.0372344,204.38,204.3,39.8316707]
[1738534685204,0.0372344,204.38,204.26,39.8316707]
[1738534685401,0.0372344,204.38,204.22,39.8316707]
[1738534685603,4.1,204.45,204.26,39.8316707]
[1738534685803,0.03188638,204.32,204.22,39.8316707]
[1738534686003,0.03188638,204.32,204.26,39.8316707]
[1738534686305,6.2796,204.41,204.22,39.8316707]
[1738534686606,0.03267179,204.31,204.22,39.8316707]
[1738534687302,0.03267179,204.31,204.18,40.5789707]
[1738534687710,0.88385304,204.38,204.18,40.5789707]
[1738534688101,4.8982,204.23,204.18,39.8316707]
[1738534688306,0.03499099,204.27,204.18,39.8316707]
[1738534688508,4.1,204.31,204.18,39.8316707]
[1738534688704,4.8981,204.24,204.18,39.8316707]
[1738534688904,0.03672107,204.25,204.18,39.8316707]
[1738534689104,0.03672107,204.25,204.14,39.8316707]
[1738534689509,39.8316707,204.38,204.18,39.8316707]
[1738534689708,0.88395794,204.37,204.18,39.8316707]
[1738534689913,0.03543865,204.22,204.18,39.8316707]
[1738534690113,39.8316707,204.38,204.18,39.8316707]
[1738534690314,39.8316707,204.33,204.11,1.18066526]
[1738534690811,4.8987,204.21,204.11,1.18066526]
[1738534691008,39.8316707,204.33,204.11,1.18066526]
[1738534691214,4.1,204.27,204.11,1.18066526]
[1738534691414,0.03454243,204.18,204.14,0.0337115]
[1738534691826,4.8991,204.19,204.11,1.18066526]
[1738534692122,4.8991,204.19,204.14,0.03538523]
[1738534692325,0.03175753,204.18,204.14,0.03538523]
[1738534693523,39.8316707,204.38,204.14,39.86705593]
[1738534693726,0.88399752,204.37,204.19,39.8316707]
[1738534693921,0.88399752,204.37,204.23,39.8316707]
[1738534694123,4.1,204.38,204.23,39.8316707]
[1738534694823,0.03347559,204.33,204.28,0.03196377]
[1738534695825,4.92927559,204.33,204.28,0.03196377]
[1738534696026,0.03347559,204.33,204.28,0.03196377]
[1738534696522,4.8964,204.3,204.28,0.03196377]
[1738534696725,0.03347559,204.33,204.28,0.03196377]
[1738534697119,4.8966,204.3,204.28,0.03196377]
[1738534697345,0.03347559,204.33,204.28,0.03196377]
[1738534698228,4.8967,204.29,204.28,0.03196377]
[1738534698433,4.1,204.32,204.15,39.8316707]
[1738534698931,4.8981,204.24,204.15,39.8316707]
[1738534699633,0.03124449,204.22,204.17,0.0338557]
[1738534700330,0.03124449,204.22,204.19,39.8316707]
[1738534700727,4.8962,204.31,204.24,4.8978]
[1738534700924,5.88,204.4,204.23,39.8316707]
[1738534701123,5.88,204.4,204.27,39.8316707]
[1738534701450,2.9666,204.4,204.19,40.5821707]
[1738534701627,39.8316707,204.38,204.19,0.7505]
[1738534701832,0.88387938,204.37,204.2,4.8988]
[1738534702031,0.03492298,204.31,204.26,0.03367043]
[1738534702430,4.8974,204.27,204.26,0.03367043]
[1738534704328,43.9316707,204.3,204.1,1.1666]
[1738534704549,3.96971885,204.29,204.1,0.756]
[1738534704739,39.8316707,204.26,204.03,0.4106]
[1738534705030,39.8316707,204.26,204.06,4.9019]
[1738534705428,0.03140235,204.18,204.14,0.03328923]
[1738534706138,4.9,204.15,204.14,0.03328923]
[1738534706842,4.9016,204.09,204.01,39.8316707]
[1738534707032,4.1,204.17,204.01,39.8316707]
[1738534707033,7.2729,204.17,204.01,39.8316707]
[1738534708031,4.9016,204.09,204.01,39.8316707]
[1738534708238,7.2729,204.17,204.01,39.8316707]
[1738534708439,0.03624019,204.08,204.03,4.9028]
[1738534708634,0.03624019,204.08,204.01,39.8316707]
[1738534709339,4.902,204.07,204.01,39.8316707]
[1738534709539,0.03624019,204.08,204.01,39.8316707]
[1738534710229,4.1,204.18,204.01,39.8316707]
[1738534710543,4.901,204.11,204.03,4.9027]
[1738534710751,2.9906,204.25,204.05,39.8316707]
[1738534710930,0.88447396,204.24,204.05,39.8316707]
[1738534711135,7.0906,204.25,204.05,39.8316707]
[1738534711631,4.9003,204.14,204.13,0.03726852]
[1738534712239,4.9,204.16,204.13,0.03726852]
[1738534712539,0.03371211,204.17,204.13,0.03726852]
[1738534712731,4.9003,204.14,204.13,0.03726852]
[1738534713338,4.9018,204.08,204.01,39.8316707]
[1738534713534,0.03371211,204.17,204.01,39.8316707]
[1738534713839,0.88460116,204.23,204.01,39.8316707]
[1738534714037,4.9021,204.07,204.01,39.8316707]
[1738534714434,0.03444918,204.07,203.97,39.8316707]
[1738534714739,4.9029,204.03,203.97,39.8316707]
[1738534715144,0.03465271,204.02,203.97,39.8316707]
[1738534715530,4.93785271,204.02,203.97,39.8316707]
[1738534715740,0.03465271,204.02,203.97,39.8316707]
[1738534716333,0.03465271,204.02,203.93,39.8316707]
[1738534716542,0.03465271,204.02,203.94,4.905]
[1738534716729,0.03465271,204.02,203.93,39.8316707]
[1738534718235,0.03465271,204.02,203.89,39.8316707]
[1738534718636,4.9037,204.0,203.91,4.9056]
[1738534718941,0.03199003,203.98,203.89,39.8316707]
[1738534719336,0.03199003,203.98,203.9,4.9058]
[1738534719542,0.03199003,203.98,203.89,39.8316707]
[1738534721041,4.9045,203.97,203.89,39.8316707]
[1738534721245,0.03199003,203.98,203.89,39.8316707]
[1738534722144,4.9048,203.96,203.89,39.8316707]
[1738534722341,0.03199003,203.98,203.85,44.7388707]
[1738534722543,2.9643,204.0,203.85,39.8316707]
[1738534722741,0.03677027,203.94,203.85,39.8316707]
[1738534723340,4.9054,203.93,203.81,39.8316707]
[1738534723840,0.03637081,203.89,203.81,39.8316707]
[1738534724047,0.03637081,203.89,203.83,4.9076]
[1738534724342,0.03637081,203.89,203.81,39.8316707]
[1738534724848,0.03637081,203.89,203.8,24.94847313]
[1738534725939,4.9068,203.87,203.8,4.9082]
[1738534726143,0.03637081,203.89,203.8,4.9082]
[1738534726645,0.03637081,203.89,203.76,25.81317313]
[1738534726846,4.9066,203.88,203.76,25.81317313]
[1738534727246,0.03283048,203.88,203.76,25.81317313]
[1738534727544,0.03283048,203.88,203.8,24.94847313]
[1738534727744,5.7682,203.99,203.84,24.94847313]
[1738534728043,3.0756,204.07,203.93,24.94847313]
[1738534728246,3.0756,204.07,203.97,24.94847313]
[1738534728645,4.1,204.12,203.99,40.46487025]
[1738534728841,3.0457,204.14,203.99,40.46487025]
[1738534729042,3.0457,204.14,203.91,14.62]
[1738534729043,8.9913,204.16,204.03,40.46487025]
[1738534729249,0.03352696,204.09,204.07,40.46487025]
[1738534729646,8.9913,204.16,204.07,0.03165827]
[1738534729854,0.03644544,204.1,204.07,0.03165827]
[1738534731241,0.03644544,204.1,204.07,40.49652852]
[1738534731443,3.1311,204.22,204.07,40.49652852]
[1738534731653,3.1311,204.22,204.11,40.46487025]
[1738534731847,9.5195,204.26,204.17,4.8994]
[1738534732053,9.5195,204.26,204.11,40.46487025]
[1738534732447,4.8982,204.23,204.13,4.9004]
[1738534732652,0.03103369,204.21,204.16,0.03312637]
[1738534733747,4.8998,204.16,204.07,4.9018]
[1738534733953,0.03103369,204.21,204.05,40.46487025]
[1738534734147,40.46487025,204.23,204.01,40.46487025]
[1738534734349,0.88454071,204.22,204.01,40.46487025]
[1738534734552,4.8997,204.17,204.01,40.46487025]
[1738534734759,4.1,204.24,204.05,40.46487025]
[1738534735053,4.1,204.24,204.07,0.03303722]
[1738534735251,0.88452716,204.23,204.05,40.46487025]
[1738534735557,4.1,204.24,204.05,40.46487025]
[1738534736356,0.03444003,204.17,204.12,0.03648817]
[1738534737353,0.03444003,204.17,204.01,40.46487025]
[1738534737546,4.9009,204.12,204.04,4.9026]
[1738534737751,3.1267,204.19,204.01,40.46487025]
[1738534738657,0.03197047,204.12,204.08,0.0319793]
[1738534740455,40.46487025,204.25,204.08,0.0319793]
[1738534740456,2.9296,204.25,204.09,40.46487025]
[1738534741665,4.8993,204.18,204.15,0.03296824]
[1738534741853,0.0336332,204.19,204.15,0.03296824]
[1738534742659,0.0336332,204.19,204.01,40.46487025]
[1738534742963,40.46487025,204.22,204.01,40.46487025]
[1738534743563,4.8997,204.17,204.01,40.46487025]
[1738534743764,2.9296,204.25,204.05,40.46487025]
[1738534743965,0.03415763,204.11,204.07,0.03563609]
[1738534744158,4.8993,204.18,204.12,4.9007]
[1738534744664,0.03216103,204.17,204.13,4.9004]
[1738534744861,0.03216103,204.17,204.13,4.93603609]
[1738534745067,4.8991,204.19,204.13,4.93603609]
[1738534745264,0.0369561,204.17,204.14,4.9002]
[1738534746065,0.0369561,204.17,204.16,4.8998]
[1738534746266,0.0369561,204.17,204.13,0.03563609]
[1738534747767,0.0369561,204.17,204.16,4.8998]
[1738534748265,0.0369561,204.17,204.13,0.03563609]
[1738534749069,4.9003,204.14,204.13,0.03563609]
[1738534749669,44.58182635,204.17,203.98,40.46487025]
[1738534749867,4.08,204.17,204.02,40.46487025]
[1738534750167,4.08,204.17,204.1,4.9012]
[1738534750565,4.08,204.17,204.02,40.46487025]
[1738534750761,0.03227832,204.12,204.02,40.46487025]
[1738534750965,0.03227832,204.12,204.06,40.46487025]
[1738534751171,7.8274,204.25,204.19,4.899]
[1738534751374,2.9296,204.25,204.07,0.0322]
[1738534751668,4.8998,204.16,204.11,4.9009]
[1738534752169,2.9296,204.25,204.06,40.46487025]
[1738534752365,0.03514713,204.16,204.11,0.03227832]
[1738534752668,0.03514713,204.16,204.06,40.46487025]
[1738534752870,0.03514713,204.16,204.15,4.9]
[1738534753767,9.5195,204.26,204.22,4.8982]
[1738534753970,9.5195,204.26,204.1,40.46487025]
[1738534754269,9.5195,204.26,204.16,4.8995]
[1738534754476,4.8978,204.25,204.1,40.46487025]
[1738534754669,9.5195,204.26,204.14,40.46487025]
[1738534754970,0.03736299,204.22,204.2,4.8987]
[1738534755268,0.03736299,204.22,204.18,0.03730133]
[1738534756472,4.8991,204.19,204.18,0.03730133]
[1738534756766,0.03736299,204.22,204.18,0.03730133]
[1738534756970,0.03736299,204.22,204.18,40.50217158]
[1738534757171,0.88411399,204.33,204.18,40.50217158]
[1738534757464,2.9156,204.34,204.18,40.46487025]
[1738534757665,6.1467,204.32,204.18,40.46487025]
[1738534758262,0.0342962,204.27,204.23,0.03114137]
[1738534758671,0.0342962,204.27,204.26,4.8974]
[1738534760070,0.0342962,204.27,204.24,4.8977]
[1738534760269,0.0342962,204.27,204.23,0.03114137]
[1738534760670,9.62e-05,204.27,204.23,0.03114137]
[1738534760865,4.894,204.4,204.26,40.46487025]
[1738534761070,11.8636,204.46,204.36,4.8949]
[1738534761272,11.8636,204.46,204.3,40.46487025]
[1738534761470,4.8938,204.41,204.3,40.46487025]
[1738534761968,0.03268438,204.38,204.33,0.03339959]
[1738534763872,0.03268438,204.38,204.35,4.8951]
[1738534764170,0.03268438,204.38,204.33,0.03339959]
[1738534764365,0.03268438,204.38,204.36,4.8949]
[1738534765972,0.03268438,204.38,204.37,4.8947]
[1738534766172,8.438e-05,204.38,204.37,4.8947]
[1738534766573,8.438e-05,204.38,204.33,4.92889959]
[1738534767377,8.438e-05,204.38,204.33,0.03339959]
[1738534767674,4.895,204.36,204.33,0.03339959]
[1738534767875,8.438e-05,204.38,204.33,0.03339959]
[1738534769276,4.8955,204.34,204.33,0.03339959]
[1738534769472,40.46487025,204.35,204.18,0.9649]
[1738534769674,3.0078,204.33,204.18,0.9649]
[1738534769874,3.0078,204.33,204.16,40.46487025]
[1738534770073,40.46487025,204.31,204.13,0.3826]
[1738534770277,40.46487025,204.31,204.11,0.9649]
[1738534770476,0.88422436,204.3,204.11,0.9649]
[1738534770695,0.0314716,204.23,204.19,0.03115276]
[1738534771077,0.0314716,204.23,204.21,4.8986]
[1738534773881,7.16e-05,204.23,204.22,4.8983]
[1738534775377,7.16e-05,204.23,204.2,4.8986]
[1738534775778,7.16e-05,204.23,204.19,0.03115276]
[1738534776783,4.8984,204.22,204.19,0.03115276]
[1738534779080,7.16e-05,204.23,204.19,0.03115276]
[1738534780679,4.8982716,204.23,204.19,0.03115276]
[1738534781085,4.8993,204.18,204.12,4.9005]
[1738534781280,6.0248,204.22,204.06,0.3826]
[1738534781485,10.1048,204.22,204.04,41.43307025]
[1738534781680,10.1048,204.22,204.09,4.9012]
[1738534781887,50.56967025,204.22,204.04,41.43307025]
[1738534782287,4.9006,204.13,204.11,0.03652416]
[1738534782992,0.03423973,204.15,204.0,40.46487025]
[1738534783287,40.46487025,204.18,204.05,4.9024]
[1738534783482,4.9015,204.09,204.0,40.46487025]
[1738534783682,10.1048,204.22,203.96,40.46487025]
[1738534783683,40.46487025,204.14,203.96,40.46487025]
[1738534783887,40.46487025,204.14,203.92,40.46487025]
[1738534784191,0.03344929,204.07,204.03,0.03329998]
[1738534784387,0.03344929,204.07,203.97,4.9043]
[1738534784792,7.2174,204.09,203.97,4.9043]
[1738534785199,4.9039,203.99,203.92,4.9053]
[1738534785592,0.0355291,203.98,203.93,0.03485893]
[1738534787498,0.0355291,203.98,203.81,80.59377846]
[1738534787798,5.7413,204.05,203.87,40.46487025]
[1738534788401,4.9035,204.01,203.87,40.46487025]
[1738534788595,4.9035,204.01,203.94,0.03323112]
[1738534788596,0.03558786,203.98,203.94,0.03323112]
[1738534790301,4.93978786,203.98,203.94,0.03323112]
[1738534790998,4.9044,203.97,203.94,0.03323112]
[1738534791896,0.03558786,203.98,203.83,40.46487025]
[1738534792101,4.9054,203.93,203.81,0.9746]
[1738534792704,4.9054,203.93,203.85,4.907]
[1738534792899,4.9056,203.92,203.81,0.9746]
[1738534793208,0.03444926,203.91,203.81,0.9746]
[1738534793696,0.03444926,203.91,203.79,40.46487025]
[1738534794300,4.9067,203.88,203.75,41.28785221]
[1738534794504,6.0278,203.9,203.75,41.28785221]
[1738534794902,0.0310595,203.85,203.75,41.28785221]
[1738534796703,4.9075,203.84,203.75,41.28785221]
[1738534797301,0.0310595,203.85,203.71,40.46487025]
[1738534797501,3.1619,203.89,203.71,40.46487025]
[1738534797702,0.03619481,203.8,203.71,40.46487025]
[1738534798307,0.03619481,203.8,203.79,4.9087]
[1738534799627,3.1619,203.89,203.86,4.9068]
[1738534799805,6.0278,203.9,203.78,24.96175766]
[1738534800110,3.0915,203.95,203.82,24.96175766]
[1738534800813,0.03709106,203.91,203.86,0.0349194]
[1738534801212,0.03709106,203.91,203.87,4.9066]
[1738534801414,0.03709106,203.91,203.86,0.0349194]
[1738534801807,0.03709106,203.91,203.9,4.906]
[1738534802009,0.03709106,203.91,203.86,0.0349194]
[1738534803123,0.03709106,203.91,203.88,4.9065]
[1738534803413,0.03709106,203.91,203.86,0.0349194]
[1738534804709,4.9068,203.87,203.86,0.0349194]
[1738534805418,28.13015766,203.9,203.72,24.96175766]
[1738534805713,4.9084,203.8,203.73,4.91]
[1738534805916,4.9084,203.8,203.68,24.96175766]
[1738534806114,2.8985,203.85,203.68,24.96175766]
[1738534806315,4.9089,203.78,203.71,4.9104]
[1738534806615,0.03171471,203.79,203.61,41.20168071]
[1738534807014,4.08,203.81,203.61,41.20168071]
[1738534807215,0.0350236,203.72,203.61,41.20168071]
[1738534807515,0.0350236,203.72,203.57,42.07186036]
[1738534807910,0.88648254,203.8,203.57,42.07186036]
[1738534808107,0.03224009,203.67,203.61,4.9129]
[1738534808313,0.03224009,203.67,203.52,80.59377846]
[1738534808513,13.4884,203.68,203.52,80.59377846]
[1738534808710,0.031391,203.62,203.52,80.59377846]
[1738534810113,40.64485136,203.62,203.52,80.59377846]
[1738534810511,3.0346,203.61,203.52,80.59377846]
[1738534811220,3.0346,203.61,203.44,40.61346036]
[1738534811821,4.9153,203.52,203.36,80.59377846]
[1738534812217,4.08,203.53,203.36,80.59377846]
[1738534812422,0.036242,203.46,203.36,80.59377846]
[1738534814423,0.036242,203.46,203.38,4.9184]
[1738534814623,0.036242,203.46,203.36,80.59377846]
[1738534815624,0.036242,203.46,203.41,4.9178]
[1738534815825,0.036242,203.46,203.35,40.61346036]
[1738534816026,4.08,203.53,203.35,40.61346036]
[1738534816228,0.03247363,203.43,203.37,4.9187]
[1738534816427,0.03247363,203.43,203.35,40.61346036]
[1738534816819,0.03247363,203.43,203.41,4.9177]
[1738534818631,7.363e-05,203.43,203.41,4.9177]
[1738534819134,7.363e-05,203.43,203.42,4.9176]